fUSD/lending_fUSD_20260419
["ID","MTS","AMOUNT","RATE_DAILY","PERIOD"]
[420827676,1776600632227,-557.77441065,0.0001102,2]
[420827677,1776600632239,-42.22558935,0.0001102,2]
[420827678,1776600632248,-300.12158073,0.00011046,2]
[420827679,1776600632258,-276.0,0.00011086,2]
[420827680,1776600632267,-77.74774175,0.00011086,2]
[420827681,1776600632278,-222.25225825,0.00011086,2]
[420827705,1776600632711,-313.62,0.000111,2]
[420827706,1776600632721,-3.27010075,0.00011129,2]
[420827707,1776600632732,-154.61989925,0.00011129,2]
[420827708,1776600632742,-158.51160419,0.00011153,2]
[420827714,1776600638161,-3791.84839581,0.00011153,2]
[420827715,1776600638170,-347.791,0.00011254,2]
[420827716,1776600638179,-200.0,0.000116,4]
[420827717,1776600638189,-144.31494042,0.000117,4]
[420827718,1776600638200,-355.68505958,0.000117,4]
[420827719,1776600638210,-389.78126753,0.000118,4]
[420827970,1776600640908,-410.21873247,0.000118,4]
[420827971,1776600640918,-274.78126753,0.000118,2]
[420827981,1776600641016,-731.62217931,0.000118,2]
[420828103,1776600643504,-262.0,0.00011281,2]
[420828118,1776600646075,-481.6709692,0.00011281,2]
[420828119,1776600646288,-1662.3290308,0.00011281,2]
[420828120,1776600646298,-7208.63525316,0.000118,2]
[420828121,1776600646307,-151.0,0.00011897,2]
[420828122,1776600646317,-150.0,0.00011899,2]
[420828123,1776600646327,-150.095898,0.000119,2]
[420828124,1776600646336,-150.25035474,0.000119,2]
[420828125,1776600646346,-150.28704108,0.000119,2]
[420828126,1776600646355,-150.32388145,0.000119,2]
[420828127,1776600646364,-1000.0,0.000119,2]
[420828128,1776600646375,-183.60629051,0.000119,2]
[420828129,1776600646384,-257.56378421,0.000119,2]
[420828130,1776600646393,-237.41109765,0.000119,2]
[420828131,1776600646403,-249.18259325,0.000119,2]
[420828132,1776600646413,-5000.0,0.000119,2]
[420828133,1776600646423,-1100.0,0.000119,4]
[420828134,1776600646432,-22071.26350215,0.000119,2]
[420828135,1776600646441,-11026.20947481,0.000119,2]
[420828136,1776600646451,-6549.60876451,0.000119,2]
[420828137,1776600646460,-361.0,0.000119,5]
[420828138,1776600646469,-200.0,0.00011904,2]
[420828139,1776600646480,-208.3870112,0.00011928,2]
[420828140,1776600646489,-152.0,0.00011964,7]
[420828141,1776600646500,-152.0,0.00011964,7]
[420828142,1776600646509,-152.0,0.00011964,7]
[420828143,1776600646518,-152.0,0.00011964,7]
[420828144,1776600646528,-152.0,0.00011964,7]
[420828145,1776600646538,-2978.7134128,0.00011964,2]
[420828146,1776600646547,-762.1683749,0.00011964,2]
[420828147,1776600646556,-3974.1214061,0.00011964,2]
[420828148,1776600646565,-178.12008967,0.0001199,2]
[420828149,1776600646575,-723.94311713,0.00011993,2]
[420828150,1776600646584,-1000.0,0.00011993,2]
[420828151,1776600646593,-1000.0,0.00011993,2]
[420828152,1776600646602,-1000.0,0.00011993,2]
[420828153,1776600646612,-1000.0,0.00011993,2]
[420828154,1776600646621,-1000.0,0.00011993,2]
[420828155,1776600646631,-1000.0,0.00011993,2]
[420828156,1776600646640,-1000.0,0.00011993,2]
[420828157,1776600646650,-500.0,0.00011999,2]
[420828158,1776600646659,-622.21988067,0.00011999,2]
[420828159,1776600646669,-500.0,0.00011999,2]
[420828160,1776600646678,-500.0,0.00011999,2]
[420828161,1776600646687,-500.0,0.00011999,2]
[420828162,1776600646697,-500.0,0.00011999,2]
[420828163,1776600646707,-500.0,0.00011999,2]
[420828164,1776600646716,-500.0,0.00011999,2]
[420828165,1776600646725,-500.0,0.00011999,2]
[420828166,1776600646734,-500.0,0.00011999,2]
[420828167,1776600646743,-500.0,0.00011999,2]
[420828168,1776600646752,-500.0,0.00011999,2]
[420828169,1776600646762,-500.0,0.00011999,2]
[420828170,1776600646771,-500.0,0.00011999,2]
[420828171,1776600646780,-500.0,0.00011999,2]
[420828172,1776600646789,-500.0,0.00011999,2]
[420828173,1776600646799,-500.0,0.00011999,2]
[420828174,1776600646808,-500.0,0.00011999,2]
[420828175,1776600646817,-500.0,0.00011999,2]
[420828176,1776600646827,-500.0,0.00011999,2]
[420828177,1776600646836,-500.0,0.00011999,2]
[420828178,1776600646845,-338.73530419,0.00011999,2]
[420828179,1776600646854,-500.0,0.00011999,2]
[420828180,1776600646863,-500.0,0.00011999,2]
[420828181,1776600646872,-500.0,0.00011999,2]
[420828182,1776600646882,-500.0,0.00011999,2]
[420828183,1776600646891,-500.0,0.00011999,2]
[420828184,1776600646901,-500.0,0.00011999,2]
[420828185,1776600646911,-500.0,0.00011999,2]
[420828186,1776600646920,-500.0,0.00011999,2]
[420828188,1776600646930,-272.70045108,0.00011999,2]
[420828190,1776600646938,-226.88084095,0.00011999,2]
[420828192,1776600646947,-292.1570943,0.00011999,2]
[420828193,1776600646956,-36608.51925541,0.00012,2]
[420828194,1776600646973,-583.27070874,0.00012,2]
[420828195,1776600648511,1000.0,0.00032877,120]
[420828196,1776600672412,1000.0,0.00032877,120]
[420828197,1776600696715,1000.0,0.00032877,120]
[420828199,1776600751438,93.7085606,9.863e-05,2]
[420828200,1776600751460,166.2914394,9.863e-05,2]
[420828873,1776600909816,1000.0,0.00032877,120]
[420829111,1776600921854,1000.0,0.00032877,120]
[420829275,1776600933138,1000.0,0.00032877,120]
[420829350,1776600936929,500.0,0.0003287,120]
[420829609,1776600950602,300.0,0.00032,120]
[420829962,1776600969256,700.0,0.00032,120]
[420830337,1776600990203,1303.98637198,0.00032877,120]
[420830339,1776600990319,1192.7,0.00010867,2]
[420830399,1776600993515,1000.0,0.00032877,120]
[420830698,1776601013422,1462.83,0.0003287,120]
[420830774,1776601017714,1300.0,0.00032877,120]
[420831195,1776601042465,1000.0,0.00032877,120]
[420831287,1776601048218,1000.0,0.00032877,120]
[420831845,1776601083974,1000.0,0.00032877,120]
[420832197,1776601107365,644.89,0.00032876,120]
[420832219,1776601120875,500.0,0.0003287,120]
[420832220,1776601123366,1000.0,0.00032877,120]
[420832221,1776601201313,150.0,0.00017795,120]
[420832222,1776601202052,210.53958077,0.00017795,120]
[420832223,1776601244109,165.82,8.583e-05,2]
[420832224,1776601302234,196.90909591,0.00032877,120]
[420832225,1776601431359,260.0,9.863e-05,2]
[420832228,1776601576762,500.0,0.00032876,120]
[420832229,1776601577014,500.0,0.00032876,120]
[420832230,1776601577262,500.0,0.00032876,120]
[420832231,1776601577487,500.0,0.00032876,120]
[420832232,1776601577716,500.0,0.00032876,120]
[420832233,1776601577962,500.0,0.00032876,120]
[420832234,1776601578214,500.0,0.00032876,120]
[420832235,1776601578435,500.0,0.00032876,120]
[420832236,1776601578661,500.0,0.00032876,120]
[420832237,1776601578881,500.0,0.00032876,120]
[420832238,1776601579108,500.0,0.00032876,120]
[420832239,1776601579338,500.0,0.00032876,120]
[420832240,1776601579568,500.0,0.00032876,120]
[420832241,1776601579788,500.0,0.00032876,120]
[420832242,1776601580014,500.0,0.00032876,120]
[420832243,1776601580260,500.0,0.00032876,120]
[420832244,1776601580492,500.0,0.00032876,120]
[420832245,1776601580724,500.0,0.00032876,120]
[420832246,1776601580980,500.0,0.00032876,120]
[420832247,1776601581200,500.0,0.00032876,120]
[420832248,1776601582541,500.0,0.00032876,120]
[420832249,1776601582779,500.0,0.00032876,120]
[420832250,1776601583013,500.0,0.00032876,120]
[420832251,1776601583241,500.0,0.00032876,120]
[420832252,1776601583677,500.0,0.00032876,120]
[420832253,1776601583916,500.0,0.00032876,120]
[420832254,1776601584126,500.0,0.00032876,120]
[420832255,1776601584343,500.0,0.00032876,120]
[420832256,1776601584587,500.0,0.00032876,120]
[420832257,1776601584809,500.0,0.00032876,120]
[420832258,1776601585030,500.0,0.00032876,120]
[420832259,1776601585466,500.0,0.00032876,120]
[420832260,1776601585701,249.73277622,0.00032876,120]
[420832261,1776601603685,500.0,0.00032603,120]
[420832262,1776601604872,500.0,0.00032603,120]
[420832263,1776601605954,500.0,0.00032603,120]
[420832264,1776601607029,500.0,0.00032603,120]
[420832265,1776601608129,500.0,0.00032603,120]
[420832266,1776601609166,500.0,0.00032603,120]
[420832267,1776601612118,500.0,0.00032603,120]
[420832268,1776601612695,500.0,0.00032603,120]
[420832269,1776601616929,500.0,0.00032877,120]
[420832270,1776601618557,500.0,0.00032877,120]
[420832271,1776601619617,500.0,0.00032877,120]
[420832272,1776601620744,500.0,0.00032877,120]
[420832273,1776601655623,483.45139989,0.00032876,120]
[420832274,1776601665502,258.45,0.00030411,120]
[420832275,1776601680376,156.3333,0.00032876,120]
[420832276,1776601680795,156.3333,0.00032876,120]
[420832277,1776601681217,156.3334,0.00032876,120]
[420832278,1776601784659,1189.71,0.00010743,2]
[420832279,1776601806249,260.0,9.863e-05,2]
[420832280,1776601832245,-200.0,0.00010959,2]
[420832281,1776601832254,-166.0,0.00010959,2]
[420832282,1776601832411,-3074.0,0.00010959,2]
[420832283,1776601832420,-300.0,0.00010959,2]
[420832284,1776601832430,-218.0,0.00010959,2]
[420832285,1776601832439,-1200.0,0.00010959,2]
[420832286,1776601832448,-600.0,0.0001096,2]
[420832287,1776601832457,-600.0,0.0001096,2]
[420832288,1776601832467,-195.0,0.0001096,2]
[420832289,1776601832476,-195.0,0.0001096,2]
[420832290,1776601832486,-2500.0,0.0001096,2]
[420832291,1776601832495,-2500.0,0.0001096,2]
[420832292,1776601832505,-2500.0,0.0001096,2]
[420832293,1776601832514,-2500.0,0.0001096,2]
[420832294,1776601832523,-195.0,0.00010961,2]
[420832295,1776601832533,-200.0,0.00010976,2]
[420832296,1776601832543,-5017.76182756,0.00011134,2]
[420832297,1776601832552,-150.0,0.00011134,2]
[420832298,1776601832561,-150.0,0.00011204,2]
[420832299,1776601832570,-11924.57862462,0.00011205,2]
[420832300,1776601832582,-3277.96137538,0.00011205,2]
[420832301,1776601832592,-266.381,0.00011355,2]
[420832302,1776601832602,-972.58,0.00011507,2]
[420832303,1776601832611,-500.0,0.000116,4]
[420832305,1776601832623,-1288.8185,0.000116,2]
[420832307,1776601832632,-19864.13715189,0.000117,2]
[420832309,1776601832642,-1000.0,0.000117,4]
[420832311,1776601832651,-151.0,0.00011793,2]
[420832313,1776601832661,-154.96599412,0.00011793,2]
[420832315,1776601832670,-151.37857925,0.00011793,2]
[420832317,1776601832679,-170.78,0.00011799,2]
[420832319,1776601832689,-151.0,0.000118,2]
[420832321,1776601832698,-1600.0,0.000118,4]
[420832323,1776601832707,-151.0,0.000118,2]
[420832325,1776601832716,-151.0,0.000118,2]
[420832327,1776601832725,-150.44156326,0.000119,2]
[420832329,1776601832735,-1000.0,0.000119,2]
[420832330,1776601832744,-5000.0,0.000119,2]
[420832331,1776601832753,-151.0,0.000119,2]
[420832333,1776601832762,-258.93559972,0.000119,2]
[420832335,1776601832771,-2100.0,0.000119,4]
[420832337,1776601832781,-11284.84895625,0.000119,2]
[420832339,1776601832790,-573.66887016,0.000119,2]
[420832343,1776601834291,1862.81,0.0003,120]
[420832347,1776601838375,-1977.15710544,0.000119,2]
[420832393,1776601843625,-483.24260311,0.000119,2]
[420832397,1776601844061,-2473.0,0.00011342,2]
[420832398,1776601844070,-232748.95308638,0.000116,2]
[420832399,1776601846610,-1128.37361911,0.000116,2]
[420832400,1776601846651,-2191.4347,0.000116,2]
[420832401,1776601846762,-1352.0,0.000116,2]
[420832404,1776602013492,276.86,0.0003269,120]
[420832405,1776602021486,260.0,9.863e-05,2]
[420832406,1776602050225,9688.02725127,0.00023659,120]
[420832407,1776602146542,1595.67,0.00032877,120]
[420832408,1776602162163,700.0,0.0003287,120]
[420832409,1776602172659,260.0,9.863e-05,2]
[420832410,1776602187743,250.0,0.00032877,120]
[420832411,1776602200212,200.0,0.00032877,120]
[420832412,1776602208971,250.0,0.00032877,120]
[420832413,1776602307954,210.71996695,0.00032844,120]
[420832414,1776602540106,260.0,9.863e-05,2]
[420832415,1776602678049,930.17,0.00032877,120]
[420832417,1776602760600,2000.0,0.00010718,2]
[420832419,1776602779253,522.81,0.00010718,2]
[420832420,1776602887937,151.588,0.0003287,120]
[420832421,1776602887982,500.0,0.0001085,2]
[420832422,1776602903565,260.0,9.863e-05,2]
[420832423,1776602904728,163.47,0.00010655,2]
[420832424,1776602957519,1000.0,0.00032876,120]
[420832425,1776603001589,5773.73,0.00010905,2]
[420832426,1776603001615,10000.01,0.00010905,2]
[420832427,1776603001641,10000.01,0.00010905,2]
[420832428,1776603001668,9613.0036,0.00010905,2]
[420832430,1776603031580,-1232.03,0.0001095,2]
[420832431,1776603031590,-501.19644403,0.00010954,2]
[420832432,1776603031600,-200.0,0.00010959,2]
[420832433,1776603031610,-600.0,0.0001096,2]
[420832434,1776603031619,-166.46,0.00010962,2]
[420832435,1776603031629,-1200.0,0.00010969,2]
[420832436,1776603031639,-300.0,0.00010969,2]
[420832437,1776603031648,-2500.0,0.0001097,2]
[420832438,1776603031658,-2500.0,0.0001097,2]
[420832439,1776603031668,-2500.0,0.0001097,2]
[420832440,1776603031677,-2500.0,0.0001097,2]
[420832441,1776603031687,-195.0,0.00010981,2]
[420832442,1776603031696,-195.0,0.00010981,2]
[420832443,1776603031706,-500.0,0.00011004,2]
[420832444,1776603031715,-500.0,0.00011004,2]
[420832445,1776603031725,-500.0,0.00011004,2]
[420832446,1776603031734,-500.0,0.00011004,2]
[420832447,1776603031744,-500.0,0.00011004,2]
[420832448,1776603031754,-500.0,0.00011004,2]
[420832449,1776603031763,-500.0,0.00011004,2]
[420832450,1776603031773,-500.0,0.00011004,2]
[420832451,1776603031783,-500.0,0.00011004,2]
[420832452,1776603031792,-500.0,0.00011004,2]
[420832453,1776603031802,-500.0,0.00011004,2]
[420832454,1776603031812,-500.0,0.00011004,2]
[420832456,1776603031822,-500.0,0.00011004,2]
[420832457,1776603031832,-500.0,0.00011004,2]
[420832458,1776603031841,-500.0,0.00011004,2]
[420832459,1776603031851,-500.0,0.00011004,2]
[420832460,1776603031861,-559.89103385,0.00011004,2]
[420832461,1776603031871,-500.0,0.00011004,2]
[420832462,1776603031880,-500.0,0.00011004,2]
[420832463,1776603031890,-500.0,0.00011004,2]
[420832464,1776603031899,-500.0,0.00011004,2]
[420832465,1776603031909,-598.91033847,0.00011004,2]
[420832466,1776603031919,-334149.968,0.00011005,2]
[420832467,1776603031930,-195.0,0.00011013,2]
[420832468,1776603031939,-8882.6885148,0.00011098,2]
[420832469,1776603031949,-151.0,0.00011098,2]
[420832470,1776603031958,-5053.83135067,0.00011099,2]
[420832471,1776603031972,-5102.53271,0.00011099,2]
[420832472,1776603031982,-578.20924308,0.00011104,2]
[420832473,1776603031991,-150.0,0.00011104,2]
[420832474,1776603032001,-2103.01955707,0.00011153,2]
[420832475,1776603032012,-157.85100843,0.00011153,2]
[420832476,1776603032022,-952.36047122,0.00011372,2]
[420832477,1776603032033,-2055.56816078,0.00011472,2]
[420832478,1776603032043,-752.7331,0.00011499,2]
[420832479,1776603032053,-1048.0,0.00011545,2]
[420832480,1776603032064,-2918.7500676,0.00011545,2]
[420832488,1776603037728,-610.2499324,0.00011545,2]
[420832489,1776603037738,-156.14812436,0.00011545,2]
[420832490,1776603037782,-644.81064727,0.00011545,2]
[420832491,1776603037794,-469.43820107,0.00011545,2]
[420832492,1776603037891,-1202.6030273,0.00011545,2]
[420832493,1776603037900,-774.55407814,0.00011545,2]
[420832515,1776603042744,-200.0,0.000112,2]
[420832516,1776603042755,-931.9414888,0.00011545,2]
[420832555,1776603047164,-2072.50443306,0.00011545,2]
[420832556,1776603047174,-646.65982735,0.0001156,2]
[420832557,1776603047184,-98.9985011,0.0001156,2]
[420832558,1776603047346,-310.546,0.0001156,2]
[420832559,1776603047359,-871.33938768,0.0001156,2]
[420832560,1776603047369,-611.49090799,0.0001156,2]
[420832561,1776603047380,-201.88453134,0.0001156,2]
[420832562,1776603047390,-288.27939362,0.0001156,2]
[420832563,1776603047399,-500.0,0.00011566,2]
[420832564,1776603047409,-500.0,0.00011566,2]
[420832565,1776603047419,-174.23671925,0.00011566,2]
[420832566,1776603047429,-352.23247507,0.00011566,2]
[420832567,1776603047438,-189.93073678,0.00011566,2]
[420832568,1776603047447,-369.26545887,0.00011566,2]
[420832569,1776603047456,-500.0,0.00011566,2]
[420832570,1776603047466,-515.64745443,0.00011566,2]
[420832571,1776603047476,-155.0,0.00011566,2]
[420832572,1776603047485,-5223.3798395,0.00011567,2]
[420832573,1776603047495,-89370.3768295,0.00011567,2]
[420832574,1776603047504,-3173.3756925,0.00011567,2]
[420832575,1776603047514,-305.4957801,0.00011567,2]
[420832576,1776603047523,-2273.97749357,0.00011572,2]
[420832577,1776603047533,-200.0,0.000116,4]
[420832578,1776603047544,-2322.35788913,0.00011672,2]
[420832579,1776603047555,-500.0,0.000117,4]
[420832580,1776603047563,-2492.38682646,0.00011772,2]
[420832581,1776603047573,-800.0,0.000118,4]
[420832582,1776603047584,-150.32648,0.0001188,2]
[420832583,1776603047595,-150.32648,0.0001188,2]
[420832584,1776603047605,-161.0,0.0001189,2]
[420832585,1776603047616,-161.0,0.0001189,2]
[420832586,1776603047627,-1000.0,0.000119,2]
[420832587,1776603047637,-175.03359271,0.000119,2]
[420832588,1776603047647,-298.98297548,0.000119,2]
[420832589,1776603047656,-237.0082841,0.000119,2]
[420832590,1776603047665,-258.88154527,0.000119,2]
[420832591,1776603047674,-5000.0,0.000119,2]
[420832592,1776603047684,-1100.0,0.000119,4]
[420832593,1776603047693,-6668.11761466,0.000119,2]
[420832594,1776603047703,-151.0,0.000119,2]
[420832595,1776603047714,-172.62373314,0.000119,2]
[420832596,1776603047723,-9975.9002632,0.000119,2]
[420832597,1776603047732,-222.78165586,0.000119,2]
[420832598,1776603047742,-222.65011209,0.0001199,2]
[420832599,1776603047751,-1084.6061999,0.00011995,2]
[420832600,1776603047761,-259.9681719,0.00011999,2]
[420832601,1776603047770,-1018.00837152,0.00011999,3]
[420832602,1776603047779,-326.0,0.00012,5]
[420832603,1776603047788,-267.0,0.00012,5]
[420832604,1776603047797,-296.0,0.00012,5]
[420832605,1776603047809,-747.04,0.00012,2]
[420832606,1776603047819,-315.87,0.00012,2]
[420832607,1776603047850,-15413.8576796,0.00012,2]
[420832608,1776603047873,-979.72432585,0.00012,2]
[420832609,1776603264517,150.0,0.0001,2]
[420832610,1776603266963,260.0,9.863e-05,2]
[420832611,1776603331762,150.0,0.0001,2]
[420832612,1776603334627,1399.529146,0.00032876,120]
[420832613,1776603341137,1632.41423,0.0003287,120]
[420832615,1776603415637,334.88799617,0.00032876,120]
[420832616,1776603510944,200.0,0.00032877,120]
[420832617,1776603603934,519.0,0.0003287,120]
[420832618,1776603633242,260.0,9.863e-05,2]
[420832619,1776603646864,1000.0,0.00027397,120]
[420832623,1776603774743,165.82,8.666e-05,2]
[420832624,1776603820528,260.0,9.863e-05,2]
[420832625,1776603832603,150.0,0.00010834,2]
[420832626,1776603840209,333.87,0.0003269,120]
[420832627,1776603844971,500.0,0.0001083,2]
[420832628,1776603851287,150.0,9.834e-05,2]
[420832629,1776603899983,1726.29,0.00032876,120]
[420832630,1776603914378,1726.29,0.00032876,120]
[420832631,1776603936042,216.9362676,0.00032,120]
[420832632,1776603939101,1726.29,0.00032876,120]
[420832633,1776603951179,1000.0,0.00027397,120]
[420832634,1776603951572,1000.0,0.00030137,120]
[420832635,1776603953180,1726.29,0.00032876,120]
[420832636,1776603960620,7954.19,0.00010805,2]
[420832637,1776603960664,10000.01,0.00010805,2]
[420832638,1776603960734,10000.01,0.00010805,2]
[420832639,1776603960781,10000.01,0.00010805,2]
[420832640,1776603960830,10000.01,0.00010805,2]
[420832641,1776603969567,1726.29,0.00032876,120]
[420832642,1776603983055,1726.29,0.00032876,120]
[420832643,1776603995315,260.0,9.863e-05,2]
[420832644,1776604037899,1726.29,0.00032876,120]
[420832645,1776604098495,1163.5,0.00010752,2]
[420832646,1776604106019,379.6857845,0.000328,120]
[420832647,1776604106535,471.80387164,0.00032876,120]
[420832648,1776604114008,2311.34163288,0.00032876,120]
[420832649,1776604130205,778.0,0.0003269,120]
[420832650,1776604142299,300.0,0.00010804,2]
[420832651,1776604167142,-3836.8408,0.00010805,2]
[420832652,1776604201225,1009.0,0.00010804,2]
[420832653,1776604211147,156.0,0.000328,120]
[420832654,1776604218181,156.0,0.000328,120]
[420832655,1776604219660,156.0,0.000328,120]
[420832668,1776604231802,-10000.01,0.00010805,2]
[420832669,1776604231812,-500.0,0.00010898,2]
[420832670,1776604231822,-151.0,0.00010898,2]
[420832671,1776604231832,-500.0,0.00010898,2]
[420832672,1776604231842,-151.0,0.00010898,2]
[420832673,1776604231852,-1000.0,0.00010905,2]
[420832674,1776604231861,-1600.0,0.00010933,2]
[420832675,1776604232427,-562.99942154,0.00010959,2]
[420832676,1776604232478,-241.36068941,0.00010959,2]
[420832677,1776604232488,-3240.0,0.00010996,2]
[420832678,1776604232497,-150.0,0.00011114,2]
[420832679,1776604232507,-194.72792766,0.00011115,2]
[420832680,1776604232516,-200.0,0.00011115,2]
[420832681,1776604232526,-670.58624095,0.00011115,2]
[420832682,1776604232535,-500.0,0.00011115,2]
[420832683,1776604232544,-1328.27659266,0.00011115,2]
[420832684,1776604232558,-1000.0,0.00011115,2]
[420832685,1776604232576,-500.0,0.00011115,2]
[420832686,1776604232587,-194.72792766,0.00011115,2]
[420832687,1776604232596,-151.0,0.00011115,2]
[420832688,1776604232606,-160.46489528,0.00011115,2]
[420832689,1776604232615,-152.16566005,0.00011115,2]
[420832690,1776604232625,-644.79446246,0.00011115,2]
[420832691,1776604232634,-1000.0,0.00011115,2]
[420832692,1776604232644,-1000.0,0.00011115,2]
[420832693,1776604232653,-1000.0,0.00011115,2]
[420832694,1776604232663,-1000.0,0.00011115,2]
[420832695,1776604232672,-1000.0,0.00011115,2]
[420832696,1776604232682,-194.72792766,0.00011115,2]
[420832697,1776604232692,-181.97608745,0.00011115,2]
[420832698,1776604232703,-159.98,0.00011148,2]
[420832699,1776604232712,-500.0,0.0001117,2]
[420832700,1776604232722,-151.0,0.0001117,2]
[420832701,1776604232733,-150.0,0.00011193,2]
[420832702,1776604232742,-250.0,0.00011198,2]
[420832703,1776604232752,-500.0,0.00011225,2]
[420832704,1776604232761,-151.0,0.00011225,2]
[420832705,1776604232771,-500.0,0.00011445,2]
[420832706,1776604232780,-500.0,0.00011445,2]
[420832707,1776604232790,-614.04434257,0.00011445,2]
[420832708,1776604232799,-150.0,0.00011445,2]
[420832709,1776604232808,-1312.16,0.00011507,2]
[420832710,1776604232818,-208.97635853,0.0001156,2]
[420832711,1776604232828,-774.554,0.00011591,2]
[420832712,1776604232838,-416.0,0.00011591,2]
[420832713,1776604232847,-201.93286099,0.00011663,2]
[420832714,1776604232857,-246.97304237,0.00011663,2]
[420832715,1776604232866,-1377.42282659,0.00011663,2]
[420832716,1776604232876,-201.93286099,0.00011663,2]
[420832717,1776604232886,-668.65185757,0.00011663,2]
[420832718,1776604232895,-201.93286099,0.00011663,2]
[420832719,1776604232904,-12701.2210881,0.00011685,2]
[420832720,1776604232930,-2367.2965281,0.00011685,2]
[420832721,1776604232940,-1425.5503493,0.00011685,2]
[420832722,1776604232949,-15388.12880442,0.00011685,2]
[420832723,1776604232964,-508.61,0.00011685,2]
[420832724,1776604237908,-1513.4,0.00011685,2]
[420832725,1776604238016,-1751.13500748,0.00011685,2]
[420832726,1776604238026,-226.02209796,0.00011685,2]
[420832727,1776604238085,-640.04680114,0.00011685,2]
[420832728,1776604238095,-825.30799025,0.000117,2]
[420832729,1776604238107,-206.37200975,0.000117,2]
[420832730,1776604238117,-257.26,0.000117,2]
[420832731,1776604238127,-257.26,0.000117,2]
[420832732,1776604238137,-257.26,0.000117,2]
[420832733,1776604238150,-1000.0,0.000118,2]
[420832734,1776604238160,-150.0,0.00011834,2]
[420832735,1776604238170,-150.32648,0.0001188,2]
[420832736,1776604238179,-150.32648,0.0001188,2]
[420832737,1776604238189,-1196.32887033,0.00011885,2]
[420832738,1776604238293,-3803.67112967,0.00011885,2]
[420832739,1776604238303,-2500.0,0.00011885,2]
[420832740,1776604238313,-195.0,0.00011885,2]
[420832741,1776604238323,-195.0,0.00011885,2]
[420832742,1776604238333,-195.0,0.00011885,2]
[420832743,1776604238342,-195.0,0.00011885,2]
[420832744,1776604238356,-600.0,0.00011885,2]
[420832745,1776604238366,-600.0,0.00011885,2]
[420832746,1776604238377,-600.0,0.00011885,2]
[420832747,1776604238387,-1003.1201008,0.00011885,2]
[420832748,1776604238397,-600.0,0.00011885,2]
[420832750,1776604238407,-370.90041676,0.00011885,2]
[420832752,1776604238416,-300.0,0.00011885,2]
[420832753,1776604238426,-152.0,0.00011895,7]
[420832754,1776604238436,-152.0,0.00011895,7]
[420832755,1776604238447,-152.0,0.00011895,7]
[420832756,1776604238457,-165.37610968,0.000119,2]
[420832757,1776604238467,-241.5579823,0.000119,2]
[420832758,1776604238477,-217.00300967,0.000119,2]
[420832759,1776604238487,-3347.2027876,0.000119,2]
[420832767,1776604241850,566.76,0.00030411,120]
[420832768,1776604242126,-491.42396994,0.000119,2]
[420832769,1776604242138,-1161.37324246,0.000119,2]
[420832770,1776604242148,-2106.89041401,0.000119,2]
[420832771,1776604242271,156.0,0.000108,2]
[420832773,1776604242983,-2473.0,0.00011698,2]
[420832774,1776604242992,-3070.15662054,0.000119,2]
[420832775,1776604243053,-621.0,0.000119,2]